bitfinex/quotes_ETHUSD_20241215
["timestamp","ask_amount","ask_price","bid_price","bid_amount"]
[1734295222627,0.04838574,3902.3,3902.2,0.8237]
[1734295222862,0.55754123,3902.9,3902.2,0.8237]
[1734295223032,0.04838574,3902.3,3902.2,0.8237]
[1734295223237,0.55754123,3902.9,3902.2,0.8237]
[1734295223433,0.04838574,3902.3,3902.2,0.8237]
[1734295223651,3.11974123,3902.9,3902.2,0.8237]
[1734295223843,0.04838574,3902.3,3902.2,0.8237]
[1734295224045,0.54713616,3902.8,3902.2,0.8237]
[1734295224669,0.04852647,3902.7,3902.2,0.8237]
[1734295230270,0.55754123,3902.9,3902.2,0.8237]
[1734295230471,0.04868366,3902.6,3902.2,0.8237]
[1734295230679,0.55754123,3902.9,3902.2,0.8237]
[1734295231160,0.04875401,3902.8,3902.2,0.8237]
[1734295231343,3.63328139,3903.1,3902.2,0.8237]
[1734295231546,2.20553199,3903.0,3902.2,0.8237]
[1734295231743,0.04882436,3903.0,3902.2,0.8237]
[1734295231972,0.07523312,3903.0,3902.2,0.8237]
[1734295232185,2.56221,3902.9,3902.2,0.8237]
[1734295232353,0.37086545,3902.8,3902.2,0.8237]
[1734295232716,0.07548968,3902.7,3902.2,0.8237]
[1734295238699,0.86344613,3902.6,3902.2,0.8237]
[1734295238988,0.07537136,3902.5,3902.2,0.8237]
[1734295239169,4.00433684,3902.8,3902.2,0.8237]
[1734295239369,2.79518504,3902.7,3902.2,0.8237]
[1734295239573,0.86344077,3902.6,3902.2,0.8237]
[1734295239781,0.07537136,3902.5,3902.2,0.8237]
[1734295239981,0.56114276,3902.7,3902.2,0.8237]
[1734295240160,0.93900049,3902.6,3902.2,0.8237]
[1734295240361,0.07540586,3902.6,3902.2,0.8237]
[1734295241875,0.37086545,3902.8,3902.2,0.8237]
[1734295242076,0.07531711,3902.5,3902.2,0.8237]
[1734295242272,1.07121139,3902.8,3902.2,0.8237]
[1734295242472,0.0752826,3902.4,3902.2,0.8237]
[1734295242687,1.07121139,3902.8,3902.2,0.8237]
[1734295242863,0.0752481,3902.3,3902.2,0.8237]
[1734295243068,1.07121139,3902.8,3902.2,0.8237]
[1734295243268,0.0752481,3902.3,3902.2,0.8237]
[1734295243821,1.07121139,3902.7,3902.2,0.8237]
[1734295244011,0.0752481,3902.3,3902.2,0.8237]
[1734295244183,1.07121139,3902.7,3902.2,0.8237]
[1734295244497,1.37198659,3902.6,3902.2,0.8237]
[1734295244700,0.86442332,3902.5,3902.2,0.8237]
[1734295245004,0.0752826,3902.4,3902.2,0.8237]
[1734295245365,1.07121139,3902.7,3902.2,0.8237]
[1734295245597,3.30795073,3902.6,3902.2,0.8237]
[1734295245793,0.86455509,3902.5,3902.2,0.8237]
[1734295245993,0.9398722,3902.5,3902.2,0.8237]
[1734295246183,0.07531711,3902.5,3902.2,0.8237]
[1734295246778,1.60709071,3902.8,3902.2,0.8237]
[1734295246779,0.86438116,3902.4,3902.2,0.8237]
[1734295246992,0.07525796,3902.3,3902.2,0.8237]
[1734295247193,1.07121139,3902.6,3902.2,0.8237]
[1734295247494,0.07525796,3902.3,3902.2,0.8237]
[1734295247694,3.23198326,3902.5,3902.2,0.8237]
[1734295247695,1.07121139,3902.5,3902.2,0.8237]
[1734295248009,1.29657517,3902.4,3902.2,0.8237]
[1734295248166,0.07529247,3902.4,3902.2,0.8237]
[1734295248502,0.86437233,3902.3,3902.2,0.8237]
[1734295248866,0.93963029,3902.3,3902.2,0.8237]
[1734295249706,2.23649918,3902.3,3902.2,0.8237]
[1734295250087,2.23674337,3902.3,3901.8,0.8024]
[1734295250284,0.86459318,3902.2,3901.8,0.8024]
[1734295250485,0.07522345,3902.2,3901.8,0.8024]
[1734295250678,4.73719315,3902.7,3901.8,0.8024]
[1734295250679,1.07121139,3902.4,3901.8,0.8024]
[1734295250880,0.07518895,3902.1,3901.8,0.8024]
[1734295251090,1.07121139,3902.4,3901.8,0.8024]
[1734295251330,0.07515443,3902.0,3901.8,0.8024]
[1734295251477,1.07121139,3902.4,3901.8,0.8024]
[1734295251669,0.07511992,3901.9,3901.8,0.8024]
[1734295251871,1.07121139,3902.3,3901.8,0.8024]
[1734295252103,0.07511992,3901.9,3901.8,0.8024]
[1734295252580,1.07121139,3902.3,3901.8,0.8024]
[1734295252770,3.23400425,3902.3,3901.8,0.8024]
[1734295253088,2.23796205,3902.2,3901.8,0.8024]
[1734295253293,0.86511714,3902.1,3901.8,0.8024]
[1734295253489,0.07519386,3902.1,3901.8,0.8024]
[1734295253714,1.07121139,3902.2,3901.8,0.8024]
[1734295253913,1.60709071,3902.4,3901.8,0.8024]
[1734295253914,0.07515935,3902.0,3901.8,0.8024]
[1734295254095,1.07121139,3902.3,3901.8,0.8024]
[1734295254300,1.93646634,3902.3,3901.8,0.8024]
[1734295254491,1.14643976,3902.2,3901.8,0.8024]
[1734295254705,0.86537114,3902.1,3901.8,0.8024]
[1734295255082,0.07523332,3902.0,3901.8,0.8024]
[1734295256414,0.86540116,3901.9,3901.8,0.8024]
[1734295256713,0.94057533,3901.9,3901.8,0.8024]
[1734295259715,0.94072072,3901.9,3901.8,0.8024]
[1734295260827,0.07517417,3901.9,3901.8,0.8024]
[1734295261225,1.07121139,3902.1,3901.8,0.636549]
[1734295261392,0.86563683,3902.0,3901.9,0.8043]
[1734295261593,0.86563683,3902.1,3901.9,0.8043]
[1734295261796,0.86563683,3902.0,3901.9,0.8043]
[1734295262004,3.23533528,3902.2,3901.9,0.8043]
[1734295262301,2.16414078,3902.1,3901.9,0.8043]
[1734295262516,1.07121139,3902.2,3901.9,0.8043]
[1734295262706,0.0611,3902.5,3901.9,0.8043]
[1734295262707,3.23551702,3902.1,3901.9,0.8043]
[1734295262909,2.16430563,3902.0,3901.9,0.8043]
[1734295263117,1.07121139,3902.1,3901.9,0.8043]
[1734295263309,0.9409223,3902.0,3901.9,0.8043]
[1734295263630,2.23950444,3902.0,3901.9,0.8043]
[1734295265028,0.9409223,3902.0,3901.9,0.8043]
[1734295265553,2.23965342,3902.0,3901.9,0.8043]
[1734295267203,2.23994259,3902.0,3901.9,0.8043]
[1734295270501,2.23994259,3902.0,3901.9,0.1563]
[1734295271712,3.80297845,3902.0,3901.4,1.06872704]
[1734295272021,3.80297845,3902.0,3901.0,2.14365056]
[1734295272022,1.07121139,3901.7,3901.0,4.06872704]
[1734295272221,3.77169752,3901.9,3901.0,4.06872704]
[1734295272222,3.2358182,3901.6,3901.1,2.22262825]
[1734295272430,2.16430458,3901.5,3900.9,5.07519578]
[1734295272599,0.07501636,3901.5,3901.0,5.2226497]
[1734295272798,0.86561282,3901.4,3901.1,0.88905988]
[1734295273003,0.07481908,3901.3,3900.9,4.00646874]
[1734295273305,1.07121139,3901.6,3901.0,0.88887627]
[1734295273504,0.07477469,3901.2,3901.1,0.8043]
[1734295273703,1.07121139,3901.5,3901.1,0.8043]
[1734295273916,0.07477469,3901.2,3901.1,0.8043]
[1734295274132,1.07121139,3901.6,3901.1,0.8043]
[1734295274315,0.07477469,3901.2,3901.1,0.8043]
[1734295274522,1.07121139,3901.6,3901.1,0.8043]
[1734295274726,0.07477469,3901.2,3901.1,3.8043]
[1734295274927,1.07121139,3901.7,3901.1,4.64859258]
[1734295275099,1.07121139,3901.7,3901.1,3.8043]
[1734295275298,0.07456748,3901.6,3901.1,0.8043]
[1734295275505,3.30864674,3901.6,3901.1,0.8043]
[1734295275724,0.86515769,3901.5,3901.1,0.8043]
[1734295275925,1.14577887,3901.6,3901.1,0.8043]
[1734295276127,0.07449844,3901.4,3901.1,0.8043]
[1734295276330,0.07454283,3901.5,3901.1,0.8043]
[1734295276513,0.07447378,3901.3,3901.1,0.8043]
[1734295276713,1.07121139,3901.6,3901.1,0.8043]
[1734295276948,0.07443926,3901.2,3901.1,0.8043]
[1734295277129,1.07121139,3901.7,3901.1,0.8043]
[1734295277607,0.07454775,3901.6,3901.1,0.8043]
[1734295278345,1.78031139,3901.8,3901.1,0.8043]
[1734295278503,0.07451323,3901.5,3901.1,0.8043]
[1734295278859,0.07446391,3901.4,3901.1,0.8043]
[1734295279063,1.07121139,3901.7,3901.1,0.8043]
[1734295279208,0.07442938,3901.3,3901.1,0.8043]
[1734295279406,1.07121139,3901.7,3901.1,0.8043]
[1734295279641,0.07453295,3901.6,3901.1,0.8043]
[1734295280541,1.07121139,3901.5,3901.1,0.8043]
[1734295280862,0.07447871,3901.4,3901.1,0.8043]
[1734295282415,1.07121139,3901.7,3901.1,0.8043]
[1734295282622,0.07282312,3901.6,3901.1,0.8043]
[1734295284046,0.07282312,3901.6,3901.4,0.7814]
[1734295284344,1.07121139,3902.0,3901.4,0.7814]
[1734295284547,0.0727146,3901.5,3901.4,0.7814]
[1734295284716,1.07121139,3902.0,3901.4,0.7814]
[1734295284916,0.0727146,3901.5,3901.4,0.7814]
[1734295285150,1.07121139,3902.0,3901.4,0.7814]
[1734295285327,0.0727146,3901.5,3901.4,0.7814]
[1734295285850,1.07121139,3902.0,3901.4,0.7814]
[1734295286025,0.07271444,3901.5,3901.4,0.7814]
[1734295286350,1.07121139,3902.0,3901.4,0.7814]
[1734295286508,0.07271444,3901.5,3901.4,0.7814]
[1734295286718,1.07121139,3902.0,3901.4,0.7814]
[1734295286914,0.07271444,3901.5,3901.4,0.7814]
[1734295287448,1.07121139,3902.0,3901.4,0.7814]
[1734295287636,0.07271444,3901.5,3901.4,0.7814]
[1734295287835,1.07121139,3902.0,3901.4,0.7814]
[1734295288138,0.07271444,3901.5,3901.4,0.7814]
[1734295288346,1.07121139,3902.0,3901.4,0.7814]
[1734295288524,0.0727146,3901.5,3901.4,0.7814]
[1734295288731,1.07121139,3902.0,3901.4,0.7814]
[1734295288925,0.07280834,3901.5,3901.4,0.7814]
[1734295289132,1.07121139,3902.1,3901.4,0.43512287]
[1734295289351,1.07121139,3902.3,3901.5,0.7814]
[1734295290238,1.07121139,3902.3,3901.5,3.7814]
[1734295290549,3.23267384,3902.3,3901.5,3.7814]
[1734295290848,2.16146245,3902.2,3901.5,3.7814]
[1734295291057,1.07121139,3902.3,3901.5,3.7814]
[1734295291745,1.07121139,3902.3,3901.5,4.51650287]
[1734295291960,3.23271639,3902.2,3901.5,4.51650287]
[1734295292141,1.60709071,3902.4,3901.5,4.51650287]
[1734295292142,0.864602,3902.1,3901.5,4.51650287]
[1734295292337,1.07121139,3902.3,3901.5,4.51650287]
[1734295292538,3.23281732,3902.2,3901.5,4.51650287]
[1734295292746,0.86464237,3902.1,3901.5,4.51650287]
[1734295292919,1.07121139,3902.3,3901.5,4.51650287]
[1734295293452,3.30604629,3902.2,3901.5,4.51650287]
[1734295293616,0.8646686,3902.1,3901.5,4.51650287]
[1734295293821,0.07309438,3902.0,3901.5,4.51650287]
[1734295294231,1.07121139,3902.2,3901.5,4.51650287]
[1734295294516,0.0731289,3902.1,3901.5,3.7814]
[1734295294734,0.86470156,3902.0,3901.5,3.7814]
[1734295294935,0.93779594,3902.0,3901.5,3.7814]
[1734295295122,0.07309438,3902.0,3901.5,3.7814]
[1734295295326,1.07121139,3902.2,3901.5,3.7814]
[1734295295557,0.07305987,3901.9,3901.5,3.7814]
[1734295295743,1.07121139,3902.2,3901.5,3.7814]
[1734295296359,0.93769411,3902.1,3901.5,3.7814]
[1734295296521,0.07297598,3902.1,3901.5,3.7814]
[1734295299461,1.07121139,3902.3,3901.5,3.7814]
[1734295299663,0.07048472,3902.0,3901.5,3.7814]
[1734295300032,0.07047487,3901.9,3901.5,3.7814]
[1734295300341,1.07121139,3902.3,3901.5,3.7814]
[1734295300534,0.07044036,3901.8,3901.5,3.7814]
[1734295300736,1.07121139,3902.2,3901.5,0.7814]
[1734295301267,3.30366566,3902.1,3901.5,0.7814]
[1734295301427,0.86476415,3902.0,3901.5,0.7814]
[1734295301634,0.07047487,3901.9,3901.5,0.7814]
[1734295302143,1.07121139,3902.1,3901.5,0.7814]
[1734295302357,0.07044036,3901.8,3901.5,0.7814]
[1734295302553,4.70531761,3902.4,3901.5,0.7814]
[1734295302554,1.07121139,3902.0,3901.5,0.7814]
[1734295303055,0.07047487,3901.9,3901.5,0.7814]
[1734295304838,1.07121139,3902.1,3901.5,0.7814]
[1734295305159,1.60709071,3902.2,3901.5,0.7814]
[1734295305160,3.30349587,3902.0,3901.5,0.7814]
[1734295305365,2.1617751,3901.9,3901.5,0.7814]
[1734295305867,0.07044036,3901.8,3901.5,0.7814]
[1734295306441,0.07040584,3901.7,3901.5,0.7814]
[1734295306760,1.07121139,3902.0,3901.5,0.7814]
[1734295306952,0.07037132,3901.6,3901.5,0.7814]
[1734295307672,1.07121139,3902.0,3901.5,0.7814]
[1734295308252,3.76899454,3902.1,3901.5,0.7814]
[1734295308253,3.23311522,3901.9,3901.5,0.7814]
[1734295308452,0.86476153,3901.8,3901.5,0.7814]
[1734295308857,0.07040584,3901.7,3901.5,0.7814]
[1734295309254,1.07121139,3901.9,3901.5,0.7814]
[1734295309562,1.5953066,3901.9,3901.5,0.7814]
[1734295309748,0.93524614,3901.8,3901.5,0.7814]
[1734295309949,0.07044036,3901.8,3901.5,0.7814]
[1734295311381,1.07121139,3901.9,3901.5,0.7814]
[1734295311581,0.07040584,3901.7,3901.5,0.7814]
[1734295311747,1.07121139,3901.9,3901.5,0.7814]
[1734295311946,0.07037132,3901.6,3901.5,0.7814]
[1734295312150,1.07121139,3901.8,3901.5,0.7814]
[1734295312377,0.07038612,3901.6,3901.5,0.7814]
[1734295312557,1.07121139,3901.8,3901.5,0.7814]
[1734295312752,1.6662246,3901.8,3901.0,0.755]
[1734295313088,1.07121139,3901.6,3901.0,0.755]
[1734295313382,3.23338752,3901.6,3901.0,0.755]
[1734295313568,0.0703516,3901.5,3901.0,0.755]
[1734295313956,1.07121139,3901.7,3901.0,0.755]
[1734295314147,0.07030721,3901.4,3901.0,0.755]
[1734295314356,1.07121139,3901.7,3901.0,0.755]
[1734295314556,0.07027269,3901.3,3901.0,0.755]
[1734295314788,1.07121139,3901.7,3901.0,0.755]
[1734295314965,0.07023816,3901.2,3901.0,0.755]
[1734295315170,1.07121139,3901.5,3901.0,0.755]
[1734295315412,0.07010497,3901.1,3900.6,0.7908]
[1734295315888,0.07000137,3901.0,3900.6,0.7908]
[1734295316082,3.63441139,3901.4,3900.6,0.7908]
[1734295316302,3.23333992,3901.3,3900.6,0.7908]
[1734295316609,2.16212853,3901.2,3900.6,0.7908]
[1734295316747,0.86485141,3901.1,3900.6,0.7908]
[1734295316946,0.06986816,3901.1,3900.6,0.7908]
[1734295317577,1.07121139,3901.3,3900.6,0.7908]
[1734295317775,0.06983363,3901.0,3900.6,0.7908]
[1734295318053,1.07121139,3901.3,3900.6,0.7908]
[1734295318255,3.23360822,3901.3,3900.6,0.7908]
[1734295318584,0.06990269,3901.2,3900.6,0.7908]
[1734295320257,3.63441139,3901.4,3900.6,0.7908]
[1734295320458,2.16229313,3901.3,3900.6,0.7908]
[1734295320660,0.86491725,3901.2,3900.6,0.7908]
[1734295320879,0.06975957,3901.3,3900.6,0.7908]
[1734295321078,0.06969052,3901.1,3900.6,0.7908]
[1734295321250,1.07121139,3901.4,3900.6,0.7908]
[1734295321455,0.0697645,3901.3,3900.6,0.7908]
[1734295322598,0.06972998,3901.2,3900.6,0.7908]
[1734295322757,0.06972998,3901.2,3900.6,0.43610987]
[1734295323092,1.07121139,3901.5,3900.7,0.8297]
[1734295323387,0.06969545,3901.1,3900.7,0.8297]
[1734295323618,1.07121139,3901.5,3900.9,1.00646874]
[1734295323899,8.75395181,3902.1,3900.9,1.00646874]
[1734295323900,0.0696856,3901.0,3900.9,3.39321]
[1734295324059,1.07121139,3901.9,3901.0,3.39313]
[1734295324417,0.06981374,3901.8,3901.0,3.39313]
[1734295324559,0.86465227,3901.7,3901.1,0.8297]
[1734295324891,0.93449565,3901.7,3901.1,0.8297]
[1734295325065,0.06984338,3901.7,3901.1,0.8297]
[1734295325483,1.07121139,3901.9,3901.3,0.8297]
[1734295325721,0.06992728,3901.6,3901.5,1.83616874]
[1734295325856,1.07121139,3902.1,3901.5,0.8297]
[1734295326261,0.07024791,3902.0,3901.5,0.8297]
[1734295327184,0.86474559,3901.9,3901.5,0.8297]
[1734295327589,0.07009985,3901.8,3901.5,0.8297]
[1734295327975,1.07121139,3902.1,3901.5,0.8297]
[1734295328170,0.07006534,3901.7,3901.5,0.8297]
[1734295328371,1.07121139,3902.1,3901.5,0.8297]
[1734295328585,0.07003082,3901.6,3901.5,0.8297]
[1734295328764,1.07121139,3902.1,3901.5,0.8297]
[1734295328962,0.07003082,3901.6,3901.5,0.8297]
[1734295329292,1.07121139,3902.1,3901.5,0.8297]
[1734295329495,0.07003082,3901.6,3901.5,0.8297]
[1734295329998,1.07121139,3902.1,3901.5,0.8297]
[1734295330424,0.07016888,3902.0,3901.5,0.8297]
[1734295331504,0.86475468,3901.9,3901.5,0.8297]
[1734295332025,0.06888467,3901.9,3901.5,0.8297]
[1734295332393,1.07121139,3902.1,3901.5,0.8297]
[1734295332599,0.06885015,3901.8,3901.5,0.8297]
[1734295332809,1.07121139,3902.1,3901.5,0.8297]
[1734295333010,0.06881563,3901.7,3901.5,0.8297]
[1734295333248,1.07121139,3902.1,3901.5,0.8297]
[1734295333453,0.06878112,3901.6,3901.5,0.8297]
[1734295334069,1.07121139,3902.1,3901.5,0.8297]
[1734295334363,0.06891918,3902.0,3901.5,0.8297]
[1734295334506,0.86475522,3901.9,3901.5,0.8297]
[1734295334706,0.93363989,3901.9,3901.5,0.8297]
[1734295334958,0.06888467,3901.9,3901.5,0.8297]
[1734295337112,0.86479542,3901.8,3901.5,0.8297]
[1734295337335,0.06348557,3901.7,3901.5,0.8297]
[1734295337845,1.07121139,3902.0,3901.5,0.8297]
[1734295338045,0.06345105,3901.6,3901.5,0.8297]
[1734295338246,1.07121139,3902.0,3901.5,0.8297]
[1734295338427,0.06345105,3901.6,3901.5,0.8297]
[1734295338631,1.07121139,3902.1,3901.5,0.8297]
[1734295338835,0.06345105,3901.6,3901.5,0.8297]
[1734295339148,0.061347,3901.6,3901.5,0.8297]
[1734295339349,1.07121139,3902.0,3901.5,0.8297]
[1734295339640,0.06145055,3901.9,3901.5,0.8297]
[1734295340300,0.86487879,3901.8,3901.5,0.8297]
[1734295340722,2.56313,3901.5,3901.1,0.8025]
[1734295341004,2.22330632,3901.4,3901.1,0.8025]
[1734295341147,0.86485165,3901.3,3900.4,0.8025]
[1734295341348,0.06112998,3901.2,3900.6,1.00646874]
[1734295341668,1.07121139,3901.4,3900.6,1.00646874]
[1734295341883,2.16185165,3901.4,3900.7,0.8025]
[1734295342201,0.0611645,3901.3,3900.7,0.8025]
[1734295342808,0.06112998,3901.2,3900.7,0.8025]
[1734295343502,2.56305,3901.6,3900.7,4.53977187]
[1734295343707,0.06109545,3901.1,3900.7,3.8025]
[1734295343868,2.56305,3901.6,3900.7,0.8025]
[1734295344075,0.06078462,3901.0,3900.7,0.8025]
[1734295344251,1.07167778,3901.5,3900.7,0.8025]
[1734295344456,0.06075009,3900.9,3900.7,0.8025]
[1734295345015,0.06071556,3900.8,3900.7,0.8025]
[1734295345373,1.07167778,3901.5,3900.7,0.8025]
[1734295345710,0.06092273,3901.4,3900.7,0.8025]
[1734295346699,0.8647669,3901.3,3900.7,0.8025]
[1734295347019,0.0606563,3901.2,3900.7,0.8025]
[1734295347569,1.07167778,3901.5,3900.7,0.8025]
[1734295347813,0.06072535,3901.4,3900.7,0.8025]
[1734295348113,0.06072535,3901.4,3900.7,4.53977987]
[1734295348424,1.07167778,3901.7,3900.8,1.6905582]
[1734295348629,0.0607007,3901.3,3900.8,0.8025]
[1734295348779,1.07167778,3901.7,3900.8,0.8025]
[1734295348985,0.43416124,3901.6,3900.8,0.8025]
[1734295349181,0.06080426,3901.6,3900.8,0.8025]
[1734295349569,0.86479924,3901.5,3900.8,0.8025]
[1734295349816,0.06073522,3901.4,3900.8,0.8025]
[1734295350418,3.63473778,3901.6,3900.8,0.8025]
[1734295350620,0.0607007,3901.3,3900.8,0.8025]
[1734295350760,3.63473778,3901.6,3900.8,0.8025]
[1734295350964,2.22276932,3901.5,3900.8,0.8025]
[1734295351165,0.7091,3901.3,3900.8,0.8025]
[1734295351365,0.7091,3901.3,3900.5,0.8025]
[1734295351366,0.92541999,3901.2,3900.5,0.8025]
[1734295351628,2.56337,3901.1,3900.5,0.8025]
[1734295351966,0.06069276,3901.0,3900.5,0.8025]
[1734295353533,0.50117681,3901.0,3900.5,0.8025]
[1734295353671,0.50117681,3901.0,3899.8,1.61103954]
[1734295353672,5.79645618,3900.9,3899.8,1.80896874]
[1734295353871,5.79645618,3900.9,3899.9,3.88814249]
[1734295353872,2.1612584,3900.8,3899.9,3.88814249]
[1734295354192,2.22176178,3900.8,3899.8,0.8025]
[1734295354388,0.06050338,3900.8,3899.8,4.80896874]
[1734295354730,0.06050338,3900.8,3899.8,5.70593699]
[1734295355043,0.06050338,3900.8,3899.9,3.88796203]
[1734295355205,0.06050338,3900.8,3899.9,3.0]
[1734295355539,0.06050338,3900.8,3900.1,1.00646874]
[1734295355886,3.00392405,3901.0,3900.1,1.00646874]
[1734295356199,0.40756018,3900.9,3900.1,1.00646874]
[1734295356413,0.06050338,3900.8,3900.1,1.00646874]
[1734295357031,0.06050338,3900.8,3900.2,0.8025]
[1734295359581,2.56344,3901.0,3900.2,0.8025]
[1734295359821,0.06045895,3900.9,3900.2,0.8025]
[1734295360230,3.63498778,3901.2,3900.2,0.8025]
[1734295360435,0.06042441,3900.8,3900.2,0.8025]
[1734295360640,3.63498778,3901.2,3900.2,0.8025]
[1734295360783,0.06038988,3900.7,3900.2,0.8025]
[1734295360986,3.63498778,3901.2,3900.2,0.8025]
[1734295361185,2.22022884,3901.1,3900.2,0.8025]
[1734295361418,0.86385595,3901.0,3900.2,0.8025]
[1734295361640,0.06045895,3900.9,3900.2,0.8025]
[1734295362299,0.06042441,3900.8,3900.2,0.8025]
[1734295362667,0.33657145,3901.1,3900.2,0.8025]
[1734295362831,0.06008884,3900.7,3900.2,0.8025]
[1734295363166,2.56331,3901.2,3900.2,4.53980587]
[1734295363309,2.56331,3901.2,3900.2,0.8025]
[1734295363510,0.06022697,3901.1,3900.2,0.8025]
[1734295365044,0.06022697,3901.1,3900.2,3.8025]
[1734295365251,0.06022697,3901.1,3900.2,3.0]
[1734295365571,0.7091,3901.3,3900.3,0.7956]
[1734295365708,0.06026149,3901.2,3900.3,0.7956]
[1734295368162,2.21962954,3901.2,3900.3,0.7956]
[1734295368383,3.29130732,3901.2,3900.3,0.7956]
[1734295368586,2.15936805,3901.1,3900.3,0.7956]
[1734295368752,0.06019244,3901.0,3900.3,0.7956]
[1734295369065,1.07167778,3901.2,3900.3,0.7956]
[1734295369273,0.06015791,3900.9,3900.3,0.7956]
[1734295369447,1.07167778,3901.2,3900.3,1.53220887]
[1734295369644,0.06012338,3900.8,3900.3,0.7956]
[1734295369854,4.34402778,3901.3,3900.3,0.7956]
[1734295370058,0.06008884,3900.7,3900.3,0.7956]
[1734295370367,0.06005431,3900.6,3900.3,0.7956]
[1734295370543,1.07167778,3901.2,3900.3,0.7956]
[1734295370742,0.65538141,3901.1,3900.3,0.7956]
[1734295370941,0.06022697,3901.1,3900.3,0.7956]
[1734295371149,4.34402778,3901.3,3900.3,0.7956]
[1734295371474,2.21930657,3901.2,3900.3,0.7956]
[1734295371672,0.06026149,3901.2,3900.3,0.7956]
[1734295376774,0.86385885,3901.1,3900.3,0.7956]
[1734295376933,4.34402778,3901.3,3900.3,0.7956]
[1734295376934,0.06019737,3901.0,3900.3,0.7956]
[1734295377140,4.34402778,3901.3,3900.3,0.7956]
[1734295377379,2.81530671,3901.2,3900.3,0.7956]
[1734295377738,0.86395433,3901.1,3900.3,0.7956]
[1734295378084,0.06019737,3901.0,3900.3,0.7956]
[1734295378833,0.06016284,3900.9,3900.3,0.7956]
[1734295379005,1.07167778,3901.2,3900.3,0.7956]
[1734295379202,0.0602319,3901.1,3900.3,0.7956]
[1734295381513,0.05714725,3901.1,3900.3,0.7956]
[1734295381933,0.86433538,3901.0,3900.3,0.7956]
[1734295382249,0.05952245,3900.9,3900.3,0.7956]
[1734295382619,3.63498778,3901.2,3900.3,0.7956]
[1734295382822,2.22069941,3901.1,3900.3,0.7956]
[1734295383025,0.8644471,3901.0,3900.3,1.53220887]
[1734295383218,0.05951259,3900.9,3900.3,1.53220887]
[1734295383409,1.07167778,3901.1,3900.3,1.53220887]
[1734295383613,0.05954712,3901.0,3900.3,1.53220887]
[1734295383811,0.05954712,3901.0,3900.4,0.81026976]
[1734295384210,3.63498778,3901.2,3900.4,0.81026976]
[1734295384211,1.07167778,3901.1,3900.4,0.81026976]
[1734295384410,0.05954712,3901.0,3900.4,0.81026976]
[1734295385127,0.86471527,3900.9,3900.4,0.81026976]
[1734295385445,0.05947806,3900.8,3900.4,0.81026976]
[1734295385738,1.07167778,3901.1,3900.4,0.81026976]
[1734295385933,0.05944352,3900.7,3900.3,0.7956]
[1734295386107,1.07167778,3901.0,3900.3,0.7956]
[1734295386307,0.05940899,3900.6,3900.3,0.7956]
[1734295386639,0.05937445,3900.5,3900.3,0.7956]
[1734295386839,1.07167778,3901.0,3900.3,0.7956]
[1734295387040,0.05951259,3900.9,3900.3,0.7956]
[1734295387426,1.13119037,3900.9,3900.3,0.7956]
[1734295387735,2.16268726,3900.8,3900.3,0.7956]
[1734295387935,1.13119037,3900.9,3900.3,0.7956]
[1734295388139,0.05944352,3900.7,3900.3,0.7956]
[1734295388339,0.05947806,3900.8,3900.3,0.7956]
[1734295388541,0.05940899,3900.6,3900.3,0.7956]
[1734295388839,0.05937445,3900.5,3900.3,0.7956]
[1734295389038,1.07167778,3900.9,3900.3,0.7956]
[1734295389039,1.07167778,3900.8,3900.3,0.7956]
[1734295389243,0.05944352,3900.7,3900.3,0.7956]
[1734295390117,0.86479008,3900.6,3900.3,0.7956]
[1734295390542,1.1311213,3900.7,3900.3,0.7956]
[1734295390748,0.0593399,3900.5,3900.3,0.7956]
[1734295390906,1.07167778,3900.7,3900.3,0.7956]
[1734295391105,0.05930536,3900.4,3900.3,0.7956]
[1734295391328,1.07167778,3900.7,3900.3,0.7956]
[1734295391526,0.05930536,3900.4,3900.3,0.7956]
[1734295391726,3.63526778,3900.8,3900.3,0.7956]
[1734295391913,0.05930536,3900.4,3900.3,0.7956]
[1734295392119,1.07167778,3900.7,3900.3,0.7956]
[1734295392385,0.05930536,3900.4,3900.3,0.7956]
[1734295392840,1.07167778,3900.7,3900.3,0.7956]
[1734295393145,0.05937443,3900.6,3900.3,0.7956]
[1734295393348,0.05937443,3900.6,3900.5,0.7738]
[1734295393642,1.07167778,3901.0,3900.5,0.7738]
[1734295393807,0.05933487,3900.9,3900.5,0.7738]
[1734295395516,0.86508426,3900.8,3900.5,0.7738]
[1734295395929,0.0592658,3900.7,3900.5,0.7738]
[1734295396325,1.07167778,3900.9,3900.5,0.7738]
[1734295396528,2.56365,3900.7,3900.2,1.07402636]
[1734295396794,2.56365,3900.7,3899.7,0.7738]
[1734295396795,1.07167778,3900.3,3899.7,0.7738]
[1734295397097,1.99604592,3900.2,3899.7,0.7738]
[1734295397231,1.93687384,3900.1,3899.7,0.7738]
[1734295397432,2.16303094,3900.1,3899.7,0.7738]
[1734295397660,1.07167778,3900.2,3899.7,0.7738]
[1734295397661,0.92436815,3900.0,3899.7,0.7738]
[1734295397860,0.05917209,3900.0,3899.7,0.7738]
[1734295398270,1.07167778,3900.2,3899.7,0.7738]
[1734295398574,0.05903391,3899.9,3899.7,0.7738]
[1734295398865,0.05899936,3899.8,3899.7,0.7738]
[1734295399236,1.07167778,3900.3,3899.7,0.7738]
[1734295399430,0.05913755,3900.2,3899.7,0.7738]
[1734295399656,0.86863909,3900.1,3899.7,0.7738]
[1734295400045,0.05894503,3900.0,3899.7,0.7738]
[1734295400465,1.07167778,3900.3,3899.7,0.7738]
[1734295400660,0.05891048,3899.9,3899.7,0.7738]
[1734295400879,1.07167778,3900.3,3899.7,0.7738]
[1734295401046,0.05887593,3899.8,3899.7,0.7738]
[1734295401244,1.07167778,3900.4,3899.7,1.26170102]
[1734295401444,0.05905853,3900.3,3899.7,0.7738]
[1734295407090,0.86830368,3900.2,3899.4,0.78388388]
[1734295407245,2.56398,3900.2,3899.4,0.78388388]
[1734295407438,1.63594516,3900.1,3899.4,0.78388388]
[1734295407642,0.76769597,3900.1,3899.4,0.78388388]
[1734295410681,3.33173597,3900.1,3899.4,0.78388388]
[1734295410868,0.76769597,3900.1,3899.4,0.78388388]
[1734295415483,2.5641,3900.0,3899.4,0.78388388]
[1734295415858,0.05808258,3899.9,3899.4,0.78388388]
[1734295417191,2.56396,3900.3,3899.4,0.78388388]
[1734295417394,0.05799856,3900.2,3899.4,0.78388388]
[1734295419780,3.27287,3900.5,3899.4,0.78388388]